bitfinex/quotes_BTCUSD_20251201
["timestamp","ask_amount","ask_price","bid_price","bid_amount"]
[1764578356802,0.01148408,86811.0,86810.0,0.24190517]
[1764578356930,0.01148408,86810.0,86809.0,0.01151954]
[1764578357136,0.01151914,86812.0,86805.0,0.01152007]
[1764578357336,0.33451887,86814.0,86805.0,0.24191994]
[1764578357337,0.01148408,86806.0,86805.0,0.24191994]
[1764578358885,0.01248408,86806.0,86805.0,0.24191994]
[1764578359202,0.01248408,86806.0,86805.0,0.25787994]
[1764578363736,0.01248408,86806.0,86805.0,0.28285994]
[1764578364515,0.01248408,86806.0,86805.0,0.25787994]
[1764578365532,0.01248408,86806.0,86805.0,0.28285994]
[1764578370300,0.01248408,86806.0,86805.0,0.25787994]
[1764578371178,0.001,86806.0,86802.0,0.24192827]
[1764578371517,0.01148408,86804.0,86803.0,0.24192711]
[1764578371725,0.01148408,86804.0,86803.0,0.26513711]
[1764578371974,0.01148408,86804.0,86803.0,0.28023711]
[1764578372336,0.01148408,86804.0,86803.0,0.25702711]
[1764578372543,0.06,86807.0,86806.0,0.23039882]
[1764578372915,0.06,86807.0,86806.0,0.26870882]
[1764578373046,0.01148408,86827.0,86825.0,0.2303475]
[1764578373245,0.01148408,86827.0,86824.0,0.24186826]
[1764578373465,0.24186425,86826.0,86822.0,0.24187404]
[1764578374062,0.24186425,86826.0,86823.0,0.23035293]
[1764578374286,0.01148408,86827.0,86825.0,0.2303461]
[1764578374633,0.01148408,86827.0,86826.0,0.23034574]
[1764578374746,0.01148408,86831.0,86829.0,0.24184968]
[1764578374950,0.01148408,86830.0,86829.0,0.01151688]
[1764578375184,0.323,86832.0,86831.0,0.23033248]
[1764578375385,0.323,86832.0,86829.0,0.01151688]
[1764578375583,0.323,86832.0,86831.0,0.23033248]
[1764578375902,0.33451622,86834.0,86831.0,0.2418491]
[1764578376429,0.323,86834.0,86832.0,0.23032902]
[1764578376975,0.325,86834.0,86832.0,0.23032902]
[1764578377396,0.002,86834.0,86832.0,0.23032902]
[1764578377602,0.002,86834.0,86833.0,0.23032717]
[1764578378031,0.002,86834.0,86833.0,0.24237717]
[1764578378227,0.323,86835.0,86834.0,0.23032452]
[1764578378370,0.24205083,86838.0,86835.0,0.2303202]
[1764578378570,0.2303186,86837.0,86834.0,0.24184074]
[1764578378769,0.01148408,86835.0,86834.0,0.24166074]
[1764578381285,0.01248408,86835.0,86834.0,0.24166074]
[1764578382026,0.001,86835.0,86834.0,0.27997074]
[1764578383021,0.00025282,86838.0,86837.0,0.23031657]
[1764578383372,0.00025282,86838.0,86837.0,0.24541657]
[1764578383536,0.00025282,86838.0,86837.0,0.26862657]
[1764578384384,0.00025282,86838.0,86837.0,0.24541657]
[1764578385165,0.00025282,86838.0,86837.0,0.24641657]
[1764578389188,0.24205081,86838.0,86837.0,0.001]
[1764578389395,0.0117369,86838.0,86837.0,0.001]
[1764578389793,0.0117369,86838.0,86837.0,0.23131657]
[1764578390538,0.0117369,86838.0,86837.0,0.001]
[1764578390786,0.0117369,86838.0,86830.0,0.24184951]
[1764578390787,0.01151622,86834.0,86830.0,0.24184951]
[1764578390922,0.01148408,86831.0,86830.0,0.24184951]
[1764578391756,0.2303185,86837.0,86834.0,0.23032314]
[1764578391937,0.01148408,86835.0,86834.0,0.23032314]
[1764578392739,0.24183432,86837.0,86835.0,0.2303216]
[1764578392946,0.01148408,86834.0,86833.0,0.25426322]
[1764578393367,0.01148408,86834.0,86833.0,0.26932322]
[1764578394604,0.24183638,86836.0,86832.0,0.23032776]
[1764578394801,0.01148408,86833.0,86832.0,0.24184425]
[1764578396760,0.01148408,86833.0,86832.0,0.24374425]
[1764578396978,0.0117369,86838.0,86837.0,0.23031657]
[1764578397150,0.0117369,86838.0,86837.0,0.24273657]
[1764578397564,0.00025282,86838.0,86837.0,0.28233657]
[1764578398127,0.00025282,86838.0,86837.0,0.28333657]
[1764578401150,0.00025282,86838.0,86837.0,0.25879657]
[1764578401352,0.23056673,86838.0,86837.0,0.001]
[1764578401598,0.0117369,86838.0,86837.0,0.001]
[1764578401760,0.24205081,86838.0,86837.0,0.001]
[1764578402530,0.23056673,86838.0,86837.0,0.001]
[1764578402645,0.24205081,86838.0,86837.0,0.001]
[1764578403052,0.0117369,86838.0,86837.0,0.001]
[1764578403263,0.24205081,86838.0,86837.0,0.001]
[1764578403467,0.23032672,86834.0,86832.0,0.0019]
[1764578403691,0.24181125,86833.0,86832.0,0.0019]
[1764578403871,0.01148408,86833.0,86832.0,0.0019]
[1764578404071,0.24181125,86833.0,86832.0,0.0019]
[1764578405633,0.00025282,86838.0,86832.0,0.01341649]
[1764578405929,0.01148408,86833.0,86832.0,0.24374632]
[1764578406638,0.00025282,86838.0,86837.0,0.23031657]
[1764578406788,0.00025282,86838.0,86837.0,0.24550657]
[1764578406998,0.00025282,86838.0,86837.0,0.26863657]
[1764578408055,0.00125282,86838.0,86837.0,0.26863657]
[1764578408395,0.00025282,86838.0,86837.0,0.26863657]
[1764578408512,0.00025282,86838.0,86837.0,0.26963657]
[1764578416371,0.00025282,86838.0,86837.0,0.26863657]
[1764578416557,0.00025282,86838.0,86837.0,0.27591657]
[1764578416753,0.00025282,86838.0,86837.0,0.27991657]
[1764578417103,0.00025282,86838.0,86837.0,0.27591657]
[1764578417252,0.00025282,86838.0,86837.0,0.28091657]
[1764578417460,0.00025282,86838.0,86837.0,0.27591657]
[1764578417902,0.00025282,86838.0,86837.0,0.27991657]
[1764578419056,0.00025282,86838.0,86837.0,0.27591657]
[1764578419493,0.00025282,86838.0,86837.0,0.27891657]
[1764578421575,0.00025282,86838.0,86837.0,0.67891657]
[1764578427843,0.00025282,86838.0,86837.0,0.27891657]
[1764578427990,0.00025282,86838.0,86837.0,0.27163657]
[1764578428196,0.00025282,86838.0,86837.0,0.27891657]
[1764578430335,0.00025282,86838.0,86837.0,0.60191657]
[1764578430649,0.00025282,86838.0,86837.0,0.63652676]
[1764578431990,0.00025282,86838.0,86837.0,1.03652676]
[1764578432454,0.00025282,86838.0,86837.0,1.02924676]
[1764578432640,0.00025282,86838.0,86837.0,1.03652676]
[1764578434932,0.00025282,86838.0,86837.0,1.09904975]
[1764578435139,0.00025282,86838.0,86837.0,1.16080619]
[1764578435532,0.00025282,86838.0,86837.0,1.16081364]
[1764578435696,4e-05,86861.0,86860.0,0.23025558]
[1764578435897,4e-05,86861.0,86860.0,0.35771563]
[1764578436899,4e-05,86861.0,86860.0,0.35802833]
[1764578438113,4e-05,86861.0,86860.0,0.68102833]
[1764578438746,4e-05,86861.0,86860.0,0.35802833]
[1764578444483,4e-05,86861.0,86860.0,0.36102833]
[1764578446416,0.00076664,86861.0,86860.0,0.36102833]
[1764578447652,0.00076664,86861.0,86860.0,0.68402833]
[1764578454166,0.00076664,86861.0,86860.0,0.67374833]
[1764578454424,0.00076664,86861.0,86860.0,0.68102833]
[1764578454628,0.00076664,86861.0,86860.0,0.68502833]
[1764578454801,0.00076664,86861.0,86860.0,0.68102833]
[1764578455299,0.00076664,86861.0,86860.0,0.68402833]
[1764578457076,0.00076664,86861.0,86860.0,0.68102833]
[1764578457490,0.00076664,86861.0,86860.0,0.68302833]
[1764578457706,0.00076664,86861.0,86860.0,0.68102833]
[1764578458110,0.00076664,86861.0,86860.0,0.68302833]
[1764578458367,0.00076664,86861.0,86860.0,0.68102833]
[1764578458782,0.00076664,86861.0,86860.0,0.68502833]
[1764578461102,0.00076664,86861.0,86860.0,0.72619725]
[1764578461268,0.00076664,86861.0,86860.0,1.12619725]
[1764578461723,0.01148408,86884.0,86883.0,0.23019272]
[1764578462259,0.25320041,86888.0,86885.0,0.23018819]
[1764578462489,0.01148408,86886.0,86885.0,0.23018819]
[1764578462677,0.01143161,86886.0,86885.0,0.23018819]
[1764578462980,0.23531317,86888.0,86885.0,0.23018819]
[1764578463213,0.23017914,86889.0,86885.0,0.24169765]
[1764578463383,0.11074063,86889.0,86885.0,0.01150946]
[1764578464166,0.01148408,86886.0,86885.0,0.01150946]
[1764578464574,0.01148408,86884.0,86883.0,0.24170229]
[1764578465610,0.01148408,86884.0,86882.0,0.24170673]
[1764578465611,0.01148408,86883.0,86882.0,0.24170673]
[1764578466771,0.01148408,86881.0,86880.0,0.24171029]
[1764578466988,0.01148408,86881.0,86880.0,0.01151012]
[1764578467374,0.01148408,86881.0,86880.0,0.24171269]
[1764578467550,0.01148408,86878.0,86869.0,0.01151158]
[1764578467806,0.23021643,86875.0,86871.0,0.24173663]
[1764578467990,0.01148408,86872.0,86871.0,0.24173663]
[1764578469100,0.01148408,86871.0,86870.0,0.23022877]
[1764578469394,0.01148408,86864.0,86863.0,0.01165]
[1764578469601,0.01148408,86864.0,86863.0,0.24189763]
[1764578470240,0.01151065,86876.0,86866.0,0.23023768]
[1764578470441,0.01148408,86867.0,86866.0,0.23023768]
[1764578470826,0.01148408,86867.0,86866.0,0.01593]
[1764578471027,0.23024256,86865.0,86863.0,0.03644]
[1764578471233,0.01148408,86864.0,86863.0,0.01165]
[1764578471756,0.01148408,86864.0,86863.0,0.24189763]
[1764578473288,0.01148408,86864.0,86863.0,0.01165]
[1764578473451,0.01148408,86864.0,86860.0,0.32272089]
[1764578473452,0.01148408,86861.0,86860.0,0.09246552]
[1764578473663,0.01148408,86861.0,86860.0,0.0003127]
[1764578473799,0.59351396,86861.0,86860.0,0.0003127]
[1764578474014,2.62988848,86861.0,86860.0,0.0003127]
[1764578474924,2.60111153,86861.0,86860.0,0.0003127]
[1764578476587,0.60839153,86861.0,86860.0,0.0003127]
[1764578478442,0.58752939,86861.0,86860.0,0.0003127]
[1764578479297,0.33851238,86861.0,86860.0,0.0003127]
[1764578479483,0.02699646,86861.0,86860.0,0.23056828]
[1764578480188,0.02699646,86861.0,86860.0,0.0003127]
[1764578480392,0.02299646,86861.0,86860.0,0.0003127]
[1764578480799,0.02699646,86861.0,86860.0,0.23056828]
[1764578481171,0.01551238,86861.0,86860.0,0.27102828]
[1764578481607,0.01548408,86861.0,86860.0,0.24668828]
[1764578481788,0.01548408,86861.0,86860.0,0.23056828]
[1764578481991,0.01148408,86861.0,86860.0,0.23056828]
[1764578482195,0.01148408,86861.0,86860.0,0.24668828]
[1764578482559,0.01548408,86861.0,86860.0,0.27102828]
[1764578482689,0.01548408,86861.0,86860.0,0.24668828]
[1764578482897,0.01548408,86861.0,86860.0,0.23056828]
[1764578483529,0.01548408,86861.0,86860.0,0.27102828]
[1764578483932,0.01148408,86861.0,86860.0,0.24668828]
[1764578484339,0.01348408,86861.0,86860.0,0.24668828]
[1764578484538,0.002,86861.0,86860.0,0.23056828]
[1764578484789,0.01348408,86861.0,86860.0,0.23056828]
[1764578487472,0.002,86861.0,86860.0,0.24664828]
[1764578487690,0.002,86861.0,86860.0,0.23056828]
[1764578488206,0.002,86861.0,86860.0,0.35032833]
[1764578488842,0.01348408,86861.0,86860.0,0.24664828]
[1764578490040,0.01348408,86861.0,86860.0,0.0003127]
[1764578490386,0.24373701,86861.0,86860.0,0.0003127]
[1764578492033,0.01348408,86861.0,86860.0,0.0003127]
[1764578493978,0.24373701,86861.0,86860.0,0.0003127]
[1764578495440,0.01348408,86861.0,86860.0,0.0003127]
[1764578495646,0.01348408,86861.0,86860.0,0.23056828]
[1764578497221,0.002,86861.0,86860.0,0.24664828]
[1764578497425,0.002,86861.0,86860.0,0.26968828]
[1764578497663,0.23021896,86874.0,86870.0,0.23022861]
[1764578497839,0.01148407,86871.0,86870.0,0.23022861]
[1764578498052,0.04604338,86873.0,86871.0,0.23022461]
[1764578498206,0.07087998,86873.0,86871.0,0.23022461]
[1764578498416,0.3011012,86873.0,86870.0,0.24174006]
[1764578498638,0.04604338,86873.0,86871.0,0.23022503]
[1764578498841,0.03453233,86873.0,86872.0,0.24630377]
[1764578499038,0.00025265,86877.0,86873.0,0.23021903]
[1764578499039,0.323,86875.0,86873.0,0.23021903]
[1764578499223,0.01148407,86874.0,86873.0,0.23021903]
[1764578500041,0.01348407,86871.0,86870.0,0.01151145]
[1764578500247,0.01148407,86871.0,86870.0,0.24174002]
[1764578504058,0.01148407,86871.0,86870.0,0.28086002]
[1764578505113,0.00025265,86877.0,86876.0,0.23021317]
[1764578505310,0.01173672,86877.0,86876.0,0.24160317]
[1764578507896,0.01173672,86877.0,86876.0,0.25700317]
[1764578508059,0.01173672,86877.0,86876.0,0.27995317]
[1764578508260,0.01173672,86877.0,86876.0,0.25700317]
[1764578508661,0.01173672,86877.0,86876.0,0.24160317]
[1764578511798,0.01173672,86877.0,86876.0,0.23021317]
[1764578516949,0.01148407,86872.0,86868.0,0.01151171]
[1764578517157,0.01148407,86861.0,86855.0,0.01151344]
[1764578517360,0.01148407,86861.0,86858.0,0.01151304]
[1764578517516,0.01148407,86861.0,86856.0,0.0115133]
[1764578517699,0.241737,86861.0,86857.0,0.01151317]
[1764578517932,0.01148407,86861.0,86858.0,0.01151304]
[1764578518143,0.241737,86861.0,86858.0,0.01151304]
[1764578518365,0.241737,86861.0,86856.0,0.24177898]
[1764578518723,0.241737,86861.0,86856.0,0.0115133]
[1764578519298,0.241737,86861.0,86855.0,0.01151344]
[1764578519867,0.242737,86861.0,86855.0,0.01151344]
[1764578520071,0.242737,86861.0,86854.0,0.01151357]
[1764578520273,0.34068935,86861.0,86850.0,0.0019]
[1764578520473,0.36555743,86861.0,86850.0,0.0019]
[1764578520692,0.40017481,86861.0,86850.0,0.0019]
[1764578521008,0.40017481,86861.0,86850.0,0.0134141]
[1764578521975,0.30222246,86861.0,86852.0,0.24179053]
[1764578522482,0.30222246,86861.0,86853.0,0.0115137]
[1764578522876,0.29073839,86861.0,86854.0,0.24178281]
[1764578523051,0.30222246,86861.0,86855.0,0.24177996]
[1764578523287,0.07196953,86861.0,86857.0,0.01213]
[1764578523434,0.242737,86861.0,86853.0,0.24178589]
[1764578523633,0.23125293,86861.0,86853.0,0.0115137]
[1764578523838,0.30939489,86861.0,86855.0,0.01151344]
[1764578524041,0.30939489,86861.0,86853.0,0.24178744]
[1764578524238,0.23125293,86861.0,86853.0,0.24178744]
[1764578524489,0.242737,86861.0,86850.0,0.24369356]
[1764578524663,0.242737,86861.0,86852.0,0.01151383]
[1764578524858,0.242737,86861.0,86854.0,0.01151357]
[1764578525519,0.242737,86861.0,86855.0,0.01151344]
[1764578525721,0.01248407,86861.0,86858.0,0.01151304]
[1764578526135,0.001,86861.0,86860.0,0.0157127]
[1764578526413,0.23125293,86861.0,86860.0,0.0003127]
[1764578526783,0.242737,86861.0,86860.0,0.0003127]
[1764578527379,0.01248407,86861.0,86860.0,0.0003127]
[1764578528175,0.001,86861.0,86860.0,0.0003127]
[1764578528342,0.01248407,86861.0,86860.0,0.23056828]
[1764578528544,0.001,86861.0,86860.0,0.23056828]
[1764578530237,0.01248407,86861.0,86860.0,0.26891828]
[1764578530699,0.001,86861.0,86860.0,0.26891828]
[1764578530928,0.001,86861.0,86860.0,0.27619828]
[1764578532966,0.01148407,86872.0,86871.0,0.23022566]
[1764578534249,0.27658602,86877.0,86862.0,0.01213]
[1764578534250,0.01148407,86865.0,86862.0,0.01213]
[1764578534390,0.01148407,86863.0,86862.0,0.24966006]
[1764578534572,0.01148407,86863.0,86862.0,0.26117257]
[1764578535927,0.24173984,86871.0,86867.0,0.24174664]
[1764578536157,0.01148407,86868.0,86867.0,0.24174664]
[1764578536693,0.24173555,86872.0,86869.0,0.24174094]
[1764578536903,0.01148407,86871.0,86869.0,0.24174094]
[1764578537231,0.01148407,86868.0,86867.0,0.24174882]
[1764578539292,0.03486296,86877.0,86874.0,0.01151092]
[1764578539501,0.01148407,86875.0,86874.0,0.24172736]
[1764578540266,0.02484684,86876.0,86872.0,0.01175]
[1764578540487,0.02484684,86876.0,86874.0,0.23021789]
[1764578540681,0.01148407,86875.0,86874.0,0.24172939]
[1764578542702,0.323,86875.0,86872.0,0.02326118]
[1764578542892,0.01148407,86873.0,86872.0,0.24173289]
[1764578547819,0.23021891,86874.0,86871.0,0.24173693]
[1764578548049,0.01148407,86872.0,86871.0,0.24173693]
[1764578549368,0.00025265,86877.0,86875.0,0.23021558]
[1764578549534,0.01140918,86876.0,86875.0,0.23021558]
[1764578549885,0.01148408,86876.0,86875.0,0.23021558]
[1764578551355,0.04609415,86876.0,86875.0,0.23021558]
[1764578552161,0.10026589,86881.0,86878.0,0.23020724]
[1764578552343,0.04609272,86879.0,86878.0,0.23020724]
[1764578553401,0.01148408,86879.0,86878.0,0.23020724]
[1764578554155,0.034608,86880.0,86879.0,0.23020522]
[1764578554363,0.01148408,86882.0,86881.0,0.23019992]
[1764578554564,0.01148408,86882.0,86881.0,0.25788992]
[1764578554856,0.01148408,86882.0,86881.0,0.28038992]
[1764578555814,0.01148408,86882.0,86881.0,0.28238992]
[1764578560074,0.00025262,86885.0,86884.0,0.23019198]
[1764578560277,0.00025262,86885.0,86884.0,0.25270198]
[1764578560510,0.00025262,86885.0,86884.0,0.27520198]
[1764578561750,0.00025262,86885.0,86884.0,0.27720198]
[1764578564074,0.00025262,86885.0,86884.0,0.26992198]
[1764578564287,0.00025262,86885.0,86884.0,0.27720198]
[1764578565069,0.00025262,86885.0,86884.0,0.26992198]
[1764578565270,0.00025262,86885.0,86884.0,0.27720198]
[1764578566064,0.00025262,86885.0,86884.0,0.26992198]
[1764578566267,0.00025262,86885.0,86884.0,0.27720198]
[1764578570655,0.00025262,86885.0,86884.0,0.26992198]
[1764578570817,0.00025262,86885.0,86884.0,0.27720198]
[1764578571017,0.00025262,86885.0,86884.0,0.31179888]
[1764578573122,0.00025262,86885.0,86884.0,0.30979888]
[1764578573315,0.00025262,86885.0,86884.0,0.31179888]
[1764578575795,3.789e-05,86885.0,86884.0,0.31179888]
[1764578576002,0.65595322,86900.0,86894.0,0.01150827]
[1764578576229,0.01148408,86895.0,86894.0,0.24895375]
[1764578576407,0.01179981,86895.0,86894.0,0.3295938]
[1764578576608,0.01179981,86895.0,86894.0,0.3705738]
[1764578577211,0.01219366,86895.0,86894.0,0.3705738]
[1764578578061,0.01219366,86895.0,86894.0,0.3632938]
[1764578578288,0.01219366,86895.0,86894.0,0.3295938]
[1764578578625,0.01219366,86895.0,86894.0,0.3459538]
[1764578578943,0.01219366,86895.0,86894.0,0.3705738]
[1764578580953,0.01148408,86893.0,86892.0,0.01150853]
[1764578581162,0.01749648,86893.0,86892.0,0.24167931]
[1764578581365,0.00039385,86895.0,86870.0,0.23022661]
[1764578581366,0.01148408,86890.0,86870.0,0.23022661]
[1764578581554,0.01148408,86890.0,86867.0,0.01151185]
[1764578581555,0.24173495,86872.0,86867.0,0.01151185]
[1764578581751,0.01148408,86874.0,86873.0,0.01151105]
[1764578581994,0.24173182,86875.0,86869.0,0.01151158]
[1764578582204,0.01148408,86876.0,86875.0,0.24172495]
[1764578582428,0.01148408,86874.0,86873.0,0.24173217]
[1764578582583,0.25499108,86877.0,86873.0,0.24173198]
[1764578582970,0.23024256,86865.0,86861.0,0.01151264]
[1764578583223,0.23024256,86865.0,86859.0,0.24176849]
[1764578583224,0.01148408,86861.0,86859.0,0.24176849]
[1764578583540,0.01148408,86861.0,86859.0,0.01151291]
[1764578583746,0.01148408,86861.0,86856.0,0.0247833]
[1764578583747,0.01148408,86861.0,86856.0,0.25504901]
[1764578583948,0.01148408,86861.0,86858.0,0.01151304]
[1764578584148,0.01187768,86861.0,86860.0,0.23152944]
[1764578584449,0.01187768,86861.0,86860.0,0.27250944]
[1764578584794,0.01187768,86861.0,86860.0,0.24788944]
[1764578585191,0.01187768,86861.0,86860.0,0.27450944]
[1764578586131,0.01187768,86861.0,86860.0,0.24988944]
[1764578587086,0.01187768,86861.0,86860.0,0.00327386]
[1764578588285,0.08922254,86861.0,86860.0,0.00327386]
[1764578588665,0.01187768,86861.0,86860.0,0.00327386]
[1764578589335,0.01187768,86861.0,86860.0,0.00127386]
[1764578589590,0.01187768,86861.0,86860.0,0.23152944]
[1764578589885,0.01187768,86861.0,86860.0,0.00327386]
[1764578590256,0.01187768,86861.0,86860.0,0.23352944]
[1764578592303,0.0003936,86861.0,86860.0,0.24988944]
[1764578592707,0.0003936,86861.0,86860.0,0.27450944]
[1764578595574,0.24173338,86873.0,86860.0,0.27450944]
[1764578595575,0.34178986,86882.0,86877.0,0.01151052]
[1764578595746,0.03460912,86878.0,86877.0,0.01156975]
[1764578595909,0.03460912,86878.0,86877.0,5.923e-05]
[1764578595910,0.323,86878.0,86877.0,5.923e-05]
[1764578596119,0.323,86879.0,86877.0,5.923e-05]
[1764578596523,0.33448408,86879.0,86877.0,5.923e-05]
[1764578596980,0.33448408,86879.0,86878.0,0.23020787]
[1764578597279,0.01148408,86879.0,86878.0,0.23020787]
[1764578597834,0.01148408,86879.0,86877.0,0.23026975]
[1764578598460,0.01148408,86879.0,86878.0,0.23020787]
[1764578599604,0.01148408,86879.0,86877.0,5.923e-05]
[1764578599755,0.2416893,86879.0,86878.0,0.001]
[1764578600773,0.01148408,86879.0,86878.0,0.001]
[1764578601025,0.01148408,86879.0,86878.0,0.23020787]
[1764578604484,0.00728,86884.0,86883.0,0.23019462]
[1764578604673,0.01876408,86884.0,86883.0,0.23019462]
[1764578604911,0.01148408,86884.0,86883.0,0.23019462]
[1764578605125,0.50207253,86889.0,86886.0,0.23018592]
[1764578605277,0.23018163,86888.0,86885.0,0.24169804]
[1764578605593,0.25317253,86889.0,86886.0,0.23018577]
[1764578605791,0.02299301,86889.0,86887.0,0.23018205]
[1764578605956,0.01148408,86889.0,86888.0,0.23018138]
[1764578612792,0.03657619,86893.0,86892.0,0.23017078]
[1764578612997,0.03657619,86893.0,86892.0,0.27144078]
[1764578612998,0.00025259,86893.0,86892.0,0.27144078]
[1764578620048,0.00025259,86893.0,86892.0,0.27872078]
[1764578620795,0.00025259,86893.0,86892.0,0.28072078]
[1764578621520,0.00025259,86893.0,86892.0,0.27344078]
[1764578621728,0.00025259,86893.0,86892.0,0.28072078]
[1764578632776,0.00025259,86893.0,86892.0,0.27344078]
[1764578632948,0.00025259,86893.0,86892.0,0.28072078]
[1764578638209,0.00025259,86893.0,86892.0,0.60372078]
[1764578639172,0.00025259,86893.0,86892.0,0.66424377]
[1764578639376,0.00025259,86893.0,86892.0,0.67908083]
[1764578639597,0.00025259,86893.0,86892.0,0.68636083]
[1764578640273,0.00025259,86893.0,86892.0,0.74488382]
[1764578640495,0.00025259,86893.0,86892.0,0.75288382]
[1764578640700,0.00025259,86893.0,86892.0,0.74488382]
[1764578641068,0.00025259,86893.0,86892.0,0.75188382]
[1764578643113,0.00025259,86893.0,86892.0,1.15188382]
[1764578646405,0.00025259,86893.0,86892.0,1.16979878]
[1764578646717,0.00025259,86893.0,86892.0,1.17779878]
[1764578649440,4e-05,86894.0,86893.0,0.61569112]
[1764578649665,4e-05,86894.0,86893.0,0.66907112]
[1764578650001,0.0002,86910.0,86909.0,0.23012576]
[1764578650208,0.0002,86910.0,86909.0,0.25342576]
[1764578650390,0.0002,86910.0,86909.0,0.35906581]
[1764578650988,0.0002,86910.0,86909.0,0.7445888]
[1764578651402,0.02463506,86944.0,86943.0,0.23003577]
[1764578652737,0.02463506,86944.0,86943.0,0.230095]
[1764578653564,0.01315098,86944.0,86943.0,0.230095]
[1764578654081,0.02463506,86944.0,86943.0,0.230095]
[1764578655987,0.25466818,86944.0,86943.0,5.923e-05]
[1764578656389,0.25627738,86944.0,86943.0,5.923e-05]
[1764578656592,0.25627738,86944.0,86943.0,0.00733923]
[1764578657187,0.67966018,86944.0,86943.0,5.923e-05]
[1764578657392,0.65551129,86944.0,86943.0,5.923e-05]
[1764578657587,0.65555129,86944.0,86943.0,5.923e-05]
[1764578658775,0.57931738,86944.0,86943.0,5.923e-05]
[1764578661383,0.57931738,86944.0,86943.0,0.00105923]
[1764578665064,0.60411577,86944.0,86943.0,0.00105923]
[1764578665269,0.60412243,86944.0,86943.0,0.00105923]
[1764578670648,0.40611379,86944.0,86943.0,0.00105923]
[1764578672475,0.35932912,86944.0,86943.0,0.00105923]
[1764578673408,0.02484505,86944.0,86943.0,0.231095]
[1764578673555,4e-05,86944.0,86943.0,0.231095]
[1764578674825,0.01152407,86944.0,86943.0,0.231095]
[1764578679181,0.01152407,86944.0,86943.0,0.238375]
[1764578680072,0.01152407,86944.0,86943.0,0.00105923]
[1764578680299,0.24155719,86944.0,86943.0,0.00105923]
[1764578683123,0.26641265,86944.0,86943.0,0.00833923]
[1764578683322,0.24155719,86944.0,86943.0,0.00833923]
[1764578683728,0.24155719,86944.0,86943.0,0.00105923]
[1764578684068,0.26641187,86944.0,86943.0,0.00833923]
[1764578686460,0.26641187,86944.0,86943.0,0.00105923]
[1764578686568,0.26641187,86944.0,86943.0,0.00833923]
[1764578686775,0.34676444,86944.0,86943.0,0.00105923]
[1764578686987,0.66976444,86944.0,86943.0,0.00105923]
[1764578687196,0.71242996,86944.0,86943.0,0.00105923]
[1764578689382,0.68138444,86944.0,86943.0,0.00105923]
[1764578691376,0.71245109,86944.0,86943.0,0.00105923]
[1764578692585,0.63209852,86944.0,86943.0,0.00105923]
[1764578693390,0.62061445,86944.0,86943.0,0.00105923]
[1764578693624,0.60103187,86944.0,86943.0,0.00105923]
[1764578694460,0.37099875,86944.0,86943.0,0.00105923]
[1764578694663,0.35937875,86944.0,86943.0,0.00105923]
[1764578695629,0.58941187,86944.0,86943.0,0.00105923]
[1764578695829,0.35937875,86944.0,86943.0,0.231095]
[1764578696145,0.35937875,86944.0,86943.0,0.00105923]
[1764578696741,0.35937875,86944.0,86943.0,0.231095]
[1764578697249,0.35937875,86944.0,86943.0,0.00105923]
[1764578697613,0.35937875,86944.0,86943.0,5.923e-05]
[1764578697818,0.35937875,86944.0,86943.0,0.230095]
[1764578698020,0.35937875,86944.0,86943.0,0.231095]
[1764578699229,0.35937875,86944.0,86943.0,0.21959348]
[1764578700272,0.03637875,86944.0,86943.0,0.21959348]
[1764578700471,4e-05,86944.0,86943.0,0.26026348]
[1764578700848,4e-05,86944.0,86943.0,0.23549348]
[1764578701049,4e-05,86944.0,86943.0,0.21959348]
[1764578701050,0.01152407,86944.0,86943.0,0.21959348]
[1764578702292,0.01152407,86944.0,86943.0,0.00828]
[1764578702498,0.24155719,86944.0,86943.0,0.001]
[1764578702932,0.26641187,86944.0,86943.0,0.001]
[1764578703057,0.58941187,86944.0,86943.0,0.001]
[1764578703707,0.62399892,86944.0,86943.0,0.001]
[1764578704005,0.73770183,86944.0,86943.0,0.001]
[1764578704412,2.73770183,86944.0,86943.0,0.001]
[1764578704615,2.73770183,86944.0,86917.0,0.00728]
[1764578704616,0.01150483,86920.0,86917.0,0.00728]
[1764578704790,0.241586,86918.0,86917.0,6.823e-05]
[1764578704996,0.01148407,86918.0,86917.0,0.23017281]
[1764578705196,0.01148407,86918.0,86917.0,6.823e-05]
[1764578705400,0.01148407,86918.0,86917.0,0.0014041]
[1764578705781,0.01148408,86918.0,86917.0,0.23250868]
[1764578705985,0.01148408,86918.0,86917.0,0.23150868]
[1764578706432,0.01148408,86918.0,86917.0,0.23250868]
[1764578706791,0.01148408,86918.0,86917.0,0.23350868]
[1764578707260,0.01148408,86918.0,86917.0,0.23250868]
[1764578707486,0.01148408,86918.0,86917.0,0.23150868]
[1764578707684,0.01148408,86918.0,86917.0,0.23250868]
[1764578707924,0.01148408,86918.0,86917.0,0.23450868]
[1764578708240,0.01148408,86918.0,86917.0,0.23250868]
[1764578708400,0.01148408,86918.0,86917.0,0.23450868]
[1764578711009,0.01148408,86918.0,86917.0,0.0116841]
[1764578711392,0.23010193,86918.0,86917.0,0.0044041]
[1764578711599,0.25771137,86918.0,86917.0,0.0044041]
[1764578711812,0.59354137,86918.0,86917.0,0.0044041]
[1764578712325,0.60502545,86918.0,86917.0,0.0024041]
[1764578712561,0.60502545,86918.0,86917.0,0.0034041]
[1764578712691,0.60502545,86918.0,86917.0,0.0024041]
[1764578713131,0.60502545,86918.0,86917.0,0.0034041]
[1764578713537,0.60502545,86918.0,86917.0,0.0024041]
[1764578713946,0.57741601,86918.0,86917.0,0.0034041]
[1764578714153,0.57741601,86918.0,86917.0,0.0024041]
[1764578714332,0.57741601,86918.0,86917.0,0.0034041]
[1764578718142,0.57741601,86918.0,86917.0,0.23350868]
[1764578718143,0.33583,86918.0,86917.0,0.23350868]
[1764578718989,0.33583,86918.0,86917.0,0.0034041]
[1764578718990,0.56593193,86918.0,86917.0,0.0034041]
[1764578719188,0.66047022,86918.0,86917.0,0.0034041]
[1764578719572,0.66047022,86918.0,86917.0,0.0030841]
[1764578719573,0.57741601,86918.0,86917.0,0.0030841]
[1764578721081,0.01150337,86931.0,86925.0,0.01150417]
[1764578721285,0.01148408,86924.0,86923.0,0.24159104]
[1764578722960,0.01148408,86924.0,86923.0,0.24259104]
[1764578729154,0.55308605,86924.0,86923.0,0.001]
[1764578729353,0.33448408,86924.0,86923.0,0.001]
[1764578729772,0.56457013,86924.0,86923.0,0.001]
[1764578730349,0.33448408,86924.0,86923.0,0.001]
[1764578730608,0.33448408,86924.0,86923.0,0.23108869]
[1764578731166,0.33448408,86924.0,86923.0,0.001]
[1764578731359,0.56457013,86924.0,86923.0,0.001]
[1764578731908,0.33448408,86924.0,86923.0,0.0018947]
[1764578732109,0.33448408,86924.0,86923.0,0.23198339]
[1764578732314,0.35932566,86924.0,86923.0,0.23198339]
[1764578733007,0.35932566,86924.0,86923.0,0.0018947]
[1764578733235,0.58941171,86924.0,86923.0,0.0018947]
[1764578734443,0.35932566,86924.0,86923.0,0.0018947]